[Event "Betsys MČR v online bleskovém šachu 2021"]
[Site "Chess.com"]
[Date "2021.04.17"]
[Round "2"]
[White "Cenisuh"]
[Black "DenisaD2008"]
[Result "1-0"]
[WhiteElo "1618"]
[BlackElo "980"]
[TimeControl "180+1"]
[EndTime "9:17:44 PDT"]
[Termination "Uživatel Cenisuh zvítězil matem"]

1. d4 {[%clk 0:02:59.2]} 1... d5 {[%clk 0:02:58.9]} 2. c4 {[%clk 0:02:58.9]}
2... dxc4 {[%clk 0:02:58.1]} 3. Nc3 {[%clk 0:02:58.8]} 3... Nf6 {[%clk
0:02:56.4]} 4. e4 {[%clk 0:02:58]} 4... e6 {[%clk 0:02:52.2]} 5. Bxc4 {[%clk
0:02:57.1]} 5... Bb4 {[%clk 0:02:50.1]} 6. Ne2 {[%clk 0:02:40.5]} 6... Nxe4
{[%clk 0:02:45.5]} 7. O-O {[%clk 0:02:40.4]} 7... Nxc3 {[%clk 0:02:42]} 8. bxc3
{[%clk 0:02:40.4]} 8... Be7 {[%clk 0:02:38.5]} 9. Qb3 {[%clk 0:02:40]} 9... O-O
{[%clk 0:02:35.9]} 10. Rd1 {[%clk 0:02:39.8]} 10... Nc6 {[%clk 0:02:33.4]} 11.
Qc2 {[%clk 0:02:35]} 11... Re8 {[%clk 0:02:25.5]} 12. Bd3 {[%clk 0:02:34.4]}
12... g6 {[%clk 0:02:20.5]} 13. Rb1 {[%clk 0:02:33.9]} 13... Bh4 {[%clk
0:02:17.8]} 14. Qd2 {[%clk 0:02:18.8]} 14... e5 {[%clk 0:02:09.5]} 15. g3 {[%clk
0:02:13.7]} 15... Bf6 {[%clk 0:02:06.4]} 16. Bb2 {[%clk 0:01:58.8]} 16... exd4
{[%clk 0:02:04.3]} 17. cxd4 {[%clk 0:01:58.9]} 17... Nxd4 {[%clk 0:01:56.2]} 18.
Nxd4 {[%clk 0:01:57.2]} 18... Bxd4 {[%clk 0:01:53.4]} 19. Bb5 {[%clk 0:01:51.6]}
19... Re4 {[%clk 0:01:32]} 20. Bxd4 {[%clk 0:01:46.8]} 20... Bg4 {[%clk
0:01:22.8]} 21. Qd3 {[%clk 0:01:38.9]} 21... Re6 {[%clk 0:01:03]} 22. f3 {[%clk
0:01:28]} 22... Bf5 {[%clk 0:01:00.3]} 23. Qc3 {[%clk 0:01:11.8]} 23... Bxb1
{[%clk 0:00:59.3]} 24. Rxb1 {[%clk 0:01:11.7]} 24... c6 {[%clk 0:00:56.6]} 25.
Bf1 {[%clk 0:01:10.5]} 25... b5 {[%clk 0:00:50.8]} 26. Bh8 {[%clk 0:01:09.2]}
26... f6 {[%clk 0:00:42.9]} 27. Bh3 {[%clk 0:00:59.3]} 27... Rd6 {[%clk
0:00:39.9]} 28. Re1 {[%clk 0:00:53.9]} 28... Kxh8 {[%clk 0:00:36.9]} 29. Qc5
{[%clk 0:00:50.1]} 29... Rd2 {[%clk 0:00:32.3]} 30. Qxc6 {[%clk 0:00:44.7]}
30... Rxa2 {[%clk 0:00:29.3]} 31. Qc5 {[%clk 0:00:32.7]} 31... Kg8 {[%clk
0:00:18.2]} 32. Be6+ {[%clk 0:00:30.9]} 32... Kg7 {[%clk 0:00:16.2]} 33. Bxa2
{[%clk 0:00:30.6]} 33... Qd2 {[%clk 0:00:13]} 34. Re7+ {[%clk 0:00:28.2]} 34...
Kh6 {[%clk 0:00:10.9]} 35. Qe3+ {[%clk 0:00:27.6]} 35... g5 {[%clk 0:00:08]} 36.
Qxd2 {[%clk 0:00:24.5]} 36... Rb8 {[%clk 0:00:06.4]} 37. Qd7 {[%clk 0:00:23.9]}
37... a5 {[%clk 0:00:04.1]} 38. g4 {[%clk 0:00:23.6]} 38... f5 {[%clk
0:00:02.2]} 39. Rxh7+ {[%clk 0:00:22.2]} 39... Kg6 {[%clk 0:00:01.1]} 40. Qf7#
{[%clk 0:00:22.7]} 1-0

[Event "Betsys MČR v online bleskovém šachu 2021"]
[Site "Chess.com"]
[Date "2021.04.17"]
[Round "2"]
[White "KdybyNecoTakNic"]
[Black "PavelNo"]
[Result "1-0"]
[WhiteElo "2359"]
[BlackElo "1995"]
[TimeControl "180+1"]
[EndTime "9:17:46 PDT"]
[Termination "Uživatel KdybyNecoTakNic zvítězil na čas"]

1. Nf3 {[%clk 0:03:00.9]} 1... Nf6 {[%clk 0:02:57.9]} 2. g3 {[%clk 0:03:01]}
2... g6 {[%clk 0:02:56.9]} 3. Bg2 {[%clk 0:03:01.9]} 3... Bg7 {[%clk 0:02:56.7]}
4. O-O {[%clk 0:03:01.3]} 4... O-O {[%clk 0:02:56.5]} 5. d4 {[%clk 0:03:01.9]}
5... d6 {[%clk 0:02:55.3]} 6. Nc3 {[%clk 0:02:59.8]} 6... c6 {[%clk 0:02:54.5]}
7. e4 {[%clk 0:02:57.9]} 7... Qa5 {[%clk 0:02:48]} 8. Be3 {[%clk 0:02:26.8]}
8... Qh5 {[%clk 0:02:40.6]} 9. Qe1 {[%clk 0:01:43.4]} 9... Bh3 {[%clk
0:02:35.2]} 10. a4 {[%clk 0:01:36.4]} 10... Ng4 {[%clk 0:02:34]} 11. a5 {[%clk
0:01:12.9]} 11... Nd7 {[%clk 0:02:33.2]} 12. a6 {[%clk 0:01:12.4]} 12... b6
{[%clk 0:02:32.1]} 13. Rd1 {[%clk 0:01:06.2]} 13... Rad8 {[%clk 0:02:26.5]} 14.
Bg5 {[%clk 0:01:00.1]} 14... f6 {[%clk 0:02:17.1]} 15. Bc1 {[%clk 0:00:54.2]}
15... e5 {[%clk 0:02:05.4]} 16. d5 {[%clk 0:00:52.7]} 16... cxd5 {[%clk
0:01:44.8]} 17. Nxd5 {[%clk 0:00:51.5]} 17... f5 {[%clk 0:01:31.3]} 18. Ne7+
{[%clk 0:00:48.2]} 18... Kh8 {[%clk 0:01:27]} 19. Rxd6 {[%clk 0:00:47]} 19...
Nc5 {[%clk 0:01:10.7]} 20. Rxd8 {[%clk 0:00:43.7]} 20... Rxd8 {[%clk 0:01:10]}
21. exf5 {[%clk 0:00:38.8]} 21... gxf5 {[%clk 0:01:09.7]} 22. Qe2 {[%clk
0:00:22.5]} 22... Bxg2 {[%clk 0:00:58.6]} 23. Kxg2 {[%clk 0:00:22.5]} 23... Bf6
{[%clk 0:00:58.4]} 24. Nc6 {[%clk 0:00:21]} 24... Rd7 {[%clk 0:00:48.8]} 25. h3
{[%clk 0:00:17.4]} 25... e4 {[%clk 0:00:47.5]} 26. hxg4 {[%clk 0:00:15.2]} 26...
exf3+ {[%clk 0:00:46.4]} 27. Qxf3 {[%clk 0:00:15.3]} 27... Qxg4 {[%clk 0:00:39]}
28. Qxg4 {[%clk 0:00:15.4]} 28... fxg4 {[%clk 0:00:39]} 29. Nb4 {[%clk
0:00:15.3]} 29... Ne6 {[%clk 0:00:25.7]} 30. c3 {[%clk 0:00:15.5]} 30... Nc5
{[%clk 0:00:22.8]} 31. Be3 {[%clk 0:00:15.8]} 31... Na4 {[%clk 0:00:21.9]} 32.
Rb1 {[%clk 0:00:15.1]} 32... Be7 {[%clk 0:00:16.9]} 33. Nc2 {[%clk 0:00:13.5]}
33... Bc5 {[%clk 0:00:12.3]} 34. Nd4 {[%clk 0:00:12.7]} 34... Kg8 {[%clk
0:00:07.1]} 35. Kf1 {[%clk 0:00:09.5]} 35... h5 {[%clk 0:00:02.8]} 36. Ke2
{[%clk 0:00:09.6]} 36... Re7 {[%clk 0:00:01.2]} 37. Kd3 {[%clk 0:00:09.5]} 1-0

[Event "Betsys MČR v online bleskovém šachu 2021"]
[Site "Chess.com"]
[Date "2021.04.17"]
[Round "2"]
[White "HonzaRubes95"]
[Black "Evca64"]
[Result "1-0"]
[WhiteElo "2514"]
[BlackElo "2072"]
[TimeControl "180+1"]
[EndTime "9:17:47 PDT"]
[Termination "Uživatel HonzaRubes95 zvítězil po vzdání soupeře"]

1. Nf3 {[%clk 0:03:00.9]} 1... d5 {[%clk 0:02:59.4]} 2. c4 {[%clk 0:02:59.9]}
2... c6 {[%clk 0:02:58.8]} 3. e3 {[%clk 0:02:59.2]} 3... Nf6 {[%clk 0:02:58.3]}
4. Nc3 {[%clk 0:02:58.9]} 4... g6 {[%clk 0:02:46.7]} 5. Be2 {[%clk 0:02:52.4]}
5... Bg7 {[%clk 0:02:46.1]} 6. O-O {[%clk 0:02:52.5]} 6... O-O {[%clk
0:02:46.1]} 7. d4 {[%clk 0:02:51]} 7... Nbd7 {[%clk 0:02:41.6]} 8. cxd5 {[%clk
0:02:46.8]} 8... cxd5 {[%clk 0:02:40.8]} 9. Bd2 {[%clk 0:02:46.4]} 9... Nb6
{[%clk 0:02:24.9]} 10. Qb3 {[%clk 0:02:43.2]} 10... Bg4 {[%clk 0:02:15.1]} 11.
Rfc1 {[%clk 0:02:40.9]} 11... Rc8 {[%clk 0:02:11.3]} 12. h3 {[%clk 0:02:28.3]}
12... Bxf3 {[%clk 0:02:10.2]} 13. Bxf3 {[%clk 0:02:28.9]} 13... e6 {[%clk
0:02:10.2]} 14. Nb5 {[%clk 0:02:09.6]} 14... Rxc1+ {[%clk 0:01:52]} 15. Rxc1
{[%clk 0:02:08.7]} 15... Nc4 {[%clk 0:01:49.1]} 16. Bb4 {[%clk 0:02:05.1]} 16...
Re8 {[%clk 0:01:31]} 17. Na3 {[%clk 0:02:02.4]} 17... Nxa3 {[%clk 0:01:10.5]}
18. Qxa3 {[%clk 0:01:56.9]} 18... a6 {[%clk 0:00:59.3]} 19. Ba5 {[%clk
0:01:49.8]} 19... b6 {[%clk 0:00:51.9]} 20. Bd2 {[%clk 0:01:40.8]} 20... a5
{[%clk 0:00:43.9]} 21. Qb3 {[%clk 0:01:38.6]} 21... Bf8 {[%clk 0:00:37.8]} 22.
Rc6 {[%clk 0:01:34.7]} 22... Ne4 {[%clk 0:00:17.4]} 23. Bxe4 {[%clk 0:01:33.7]}
23... dxe4 {[%clk 0:00:17.1]} 24. Qxb6 {[%clk 0:01:33.8]} 24... Qd5 {[%clk
0:00:15.6]} 25. b3 {[%clk 0:00:56.7]} 25... Ra8 {[%clk 0:00:15.1]} 26. Qb7
{[%clk 0:00:43]} 26... Rb8 {[%clk 0:00:14.9]} 27. Qxb8 {[%clk 0:00:42.8]} 27...
Qxc6 {[%clk 0:00:14.6]} 28. Bxa5 {[%clk 0:00:32.6]} 28... Kg7 {[%clk 0:00:14.3]}
29. Qe5+ {[%clk 0:00:25.8]} 29... f6 {[%clk 0:00:14.1]} 30. Qc7+ {[%clk
0:00:25.9]} 30... Qxc7 {[%clk 0:00:14.1]} 31. Bxc7 {[%clk 0:00:26.8]} 31... Kf7
{[%clk 0:00:13.9]} 32. Ba5 {[%clk 0:00:25.1]} 32... Ke8 {[%clk 0:00:13.7]} 33.
a4 {[%clk 0:00:22.5]} 33... Kd7 {[%clk 0:00:14]} 34. Kf1 {[%clk 0:00:22.8]}
34... Kc6 {[%clk 0:00:13.9]} 35. Ke2 {[%clk 0:00:22.7]} 35... Bd6 {[%clk
0:00:13.3]} 36. b4 {[%clk 0:00:20.7]} 36... Kd5 {[%clk 0:00:12.1]} 37. b5 {[%clk
0:00:20]} 37... Kc4 {[%clk 0:00:12.4]} 38. b6 {[%clk 0:00:18.6]} 38... Bb8
{[%clk 0:00:12.1]} 39. b7 {[%clk 0:00:18.6]} 39... Kb3 {[%clk 0:00:11.2]} 40.
Bd8 {[%clk 0:00:18.6]} 40... Kxa4 {[%clk 0:00:08.9]} 41. Bxf6 {[%clk 0:00:18.2]}
41... Kb5 {[%clk 0:00:08.1]} 42. Be5 {[%clk 0:00:18.6]} 42... Kc6 {[%clk
0:00:07.9]} 43. Bxb8 {[%clk 0:00:18.3]} 43... Kxb7 {[%clk 0:00:08.2]} 44. Be5
{[%clk 0:00:19.2]} 44... Kc6 {[%clk 0:00:08.3]} 45. f3 {[%clk 0:00:20.1]} 1-0

[Event "Betsys MČR v online bleskovém šachu 2021"]
[Site "Chess.com"]
[Date "2021.04.17"]
[Round "2"]
[White "machajda"]
[Black "Maldaj"]
[Result "0-1"]
[WhiteElo "2019"]
[BlackElo "2402"]
[TimeControl "180+1"]
[EndTime "9:17:47 PDT"]
[Termination "Uživatel Maldaj zvítězil na čas"]

1. e4 {[%clk 0:03:00.9]} 1... c5 {[%clk 0:02:59.8]} 2. Nf3 {[%clk 0:03:00.4]}
2... d6 {[%clk 0:03:00.1]} 3. d4 {[%clk 0:03:00.8]} 3... cxd4 {[%clk 0:03:00.6]}
4. Nxd4 {[%clk 0:03:01.7]} 4... Nf6 {[%clk 0:03:00.9]} 5. Nc3 {[%clk 0:03:02.2]}
5... a6 {[%clk 0:03:01.1]} 6. Bg5 {[%clk 0:03:02.1]} 6... Nbd7 {[%clk
0:03:01.1]} 7. f4 {[%clk 0:03:02.6]} 7... Qc7 {[%clk 0:03:01]} 8. Qf3 {[%clk
0:03:03]} 8... h6 {[%clk 0:03:00.8]} 9. Bh4 {[%clk 0:03:02.1]} 9... g5 {[%clk
0:03:00.5]} 10. fxg5 {[%clk 0:02:57.8]} 10... hxg5 {[%clk 0:03:01.4]} 11. Bxg5
{[%clk 0:02:54.6]} 11... Qc5 {[%clk 0:03:00.4]} 12. Be3 {[%clk 0:02:52.2]} 12...
Ne5 {[%clk 0:03:00.5]} 13. Qe2 {[%clk 0:02:38.8]} 13... Neg4 {[%clk 0:03:00.2]}
14. Bg1 {[%clk 0:02:37.1]} 14... Bh6 {[%clk 0:02:51]} 15. h3 {[%clk 0:02:33.8]}
15... Bf4 {[%clk 0:02:45.8]} 16. Ne6 {[%clk 0:02:05.9]} 16... Qb4 {[%clk
0:02:37.7]} 17. Nxf4 {[%clk 0:01:52.8]} 17... Qxb2 {[%clk 0:02:31.8]} 18. Rd1
{[%clk 0:01:38.3]} 18... Qxc3+ {[%clk 0:02:31.3]} 19. Rd2 {[%clk 0:01:38]} 19...
Bd7 {[%clk 0:02:17.3]} 20. Qf3 {[%clk 0:01:33.9]} 20... Qxf3 {[%clk 0:02:11.8]}
21. gxf3 {[%clk 0:01:33.2]} 21... Ne5 {[%clk 0:02:12.3]} 22. Be2 {[%clk
0:01:29.7]} 22... Rc8 {[%clk 0:02:08.9]} 23. Bd4 {[%clk 0:01:18.5]} 23... Bb5
{[%clk 0:02:06.3]} 24. Kf2 {[%clk 0:00:58.6]} 24... Bxe2 {[%clk 0:02:03.7]} 25.
Rxe2 {[%clk 0:00:58.5]} 25... Rc4 {[%clk 0:01:58]} 26. c3 {[%clk 0:00:56.3]}
26... Nh5 {[%clk 0:01:50.3]} 27. Nd5 {[%clk 0:00:47.9]} 27... Nd3+ {[%clk
0:01:45.3]} 28. Ke3 {[%clk 0:00:45.5]} 28... Ne5 {[%clk 0:01:44.3]} 29. Rg2
{[%clk 0:00:37]} 29... e6 {[%clk 0:01:31.5]} 30. Nb6 {[%clk 0:00:32.2]} 30...
Rc6 {[%clk 0:01:30.9]} 31. f4 {[%clk 0:00:27.8]} 31... Rxb6 {[%clk 0:01:26.1]}
32. fxe5 {[%clk 0:00:22]} 32... Rb5 {[%clk 0:01:17.7]} 33. exd6 {[%clk
0:00:20.8]} 33... e5 {[%clk 0:01:17.8]} 34. Ba7 {[%clk 0:00:18.7]} 34... Kd7
{[%clk 0:01:17.1]} 35. Rf1 {[%clk 0:00:17.7]} 35... f6 {[%clk 0:01:09.1]} 36.
Rg6 {[%clk 0:00:17.4]} 36... Kxd6 {[%clk 0:01:03.3]} 37. Kd2 {[%clk 0:00:17]}
37... Ke6 {[%clk 0:00:59.7]} 38. Kc2 {[%clk 0:00:16.3]} 38... Kf7 {[%clk
0:00:59.4]} 39. Rfg1 {[%clk 0:00:15.8]} 39... Rh7 {[%clk 0:00:53.3]} 40. Be3
{[%clk 0:00:15.8]} 40... Ra5 {[%clk 0:00:51.3]} 41. Kb3 {[%clk 0:00:14.4]} 41...
Rb5+ {[%clk 0:00:50.2]} 42. Kc2 {[%clk 0:00:14.1]} 42... Rg7 {[%clk 0:00:48.5]}
43. Rxg7+ {[%clk 0:00:12.2]} 43... Nxg7 {[%clk 0:00:49.4]} 44. Rd1 {[%clk
0:00:11.5]} 44... Ke6 {[%clk 0:00:47.4]} 45. h4 {[%clk 0:00:11.1]} 45... Ra5
{[%clk 0:00:45]} 46. Kb3 {[%clk 0:00:10.3]} 46... b5 {[%clk 0:00:45.2]} 47. Rg1
{[%clk 0:00:07.8]} 47... Kf7 {[%clk 0:00:45.1]} 48. Rd1 {[%clk 0:00:04.3]} 48...
Ra4 {[%clk 0:00:43.1]} 49. Rd7+ {[%clk 0:00:03.8]} 49... Kg6 {[%clk 0:00:42.8]}
0-1

[Event "Betsys MČR v online bleskovém šachu 2021"]
[Site "Chess.com"]
[Date "2021.04.17"]
[Round "2"]
[White "Trener-Pokrocili"]
[Black "jachymcarostrelec4"]
[Result "1-0"]
[WhiteElo "2244"]
[BlackElo "1890"]
[TimeControl "180+1"]
[EndTime "9:17:48 PDT"]
[Termination "Uživatel Trener-Pokrocili zvítězil matem"]

1. Nf3 {[%clk 0:03:00.9]} 1... d5 {[%clk 0:02:58.3]} 2. c4 {[%clk 0:03:00.4]}
2... d4 {[%clk 0:02:53.1]} 3. b4 {[%clk 0:02:59.4]} 3... Nf6 {[%clk 0:02:51.5]}
4. Bb2 {[%clk 0:02:58.1]} 4... c5 {[%clk 0:02:44.8]} 5. e3 {[%clk 0:02:57.5]}
5... Bg4 {[%clk 0:02:30.3]} 6. Qa4+ {[%clk 0:02:56.1]} 6... Nc6 {[%clk
0:02:23.6]} 7. Ne5 {[%clk 0:02:51.8]} 7... Bd7 {[%clk 0:02:21.7]} 8. Nxd7 {[%clk
0:02:49.6]} 8... Qxd7 {[%clk 0:02:21]} 9. Be2 {[%clk 0:02:28.9]} 9... Nxb4
{[%clk 0:02:17.1]} 10. Qxd7+ {[%clk 0:02:22]} 10... Kxd7 {[%clk 0:02:18]} 11.
Na3 {[%clk 0:02:20.6]} 11... e5 {[%clk 0:02:14.1]} 12. O-O {[%clk 0:02:13]}
12... Bd6 {[%clk 0:02:09.6]} 13. f4 {[%clk 0:02:02.2]} 13... exf4 {[%clk
0:02:06.8]} 14. exd4 {[%clk 0:02:01.1]} 14... Rhe8 {[%clk 0:01:54]} 15. Bf3
{[%clk 0:01:56]} 15... Nd3 {[%clk 0:01:51]} 16. Rab1 {[%clk 0:01:44.3]} 16... b6
{[%clk 0:01:47.4]} 17. Bxa8 {[%clk 0:01:36.6]} 17... Nxb2 {[%clk 0:01:38.8]} 18.
Rxb2 {[%clk 0:01:33.6]} 18... Rxa8 {[%clk 0:01:35.8]} 19. Nb5 {[%clk 0:01:30.9]}
19... Bb8 {[%clk 0:01:09.7]} 20. d5 {[%clk 0:01:27.8]} 20... Be5 {[%clk
0:01:05.9]} 21. Rbb1 {[%clk 0:01:25.2]} 21... Ng4 {[%clk 0:01:04.3]} 22. h3
{[%clk 0:01:16.7]} 22... Nh6 {[%clk 0:01:02.8]} 23. Rbe1 {[%clk 0:01:14.2]}
23... f6 {[%clk 0:01:02.4]} 24. d3 {[%clk 0:01:05.3]} 24... Nf5 {[%clk
0:01:01.7]} 25. Na3 {[%clk 0:00:48]} 25... Ng3 {[%clk 0:00:54.5]} 26. Rf3 {[%clk
0:00:44.1]} 26... Nf5 {[%clk 0:00:52.8]} 27. Nc2 {[%clk 0:00:42.3]} 27... Nd4
{[%clk 0:00:50.1]} 28. Nxd4 {[%clk 0:00:41.4]} 28... Bxd4+ {[%clk 0:00:51]} 29.
Kh1 {[%clk 0:00:40.9]} 29... Be3 {[%clk 0:00:47.7]} 30. Re2 {[%clk 0:00:38.6]}
30... g5 {[%clk 0:00:47]} 31. g3 {[%clk 0:00:37.5]} 31... Rg8 {[%clk 0:00:40.6]}
32. Rf1 {[%clk 0:00:30.2]} 32... Kd6 {[%clk 0:00:36.4]} 33. gxf4 {[%clk
0:00:28.7]} 33... gxf4 {[%clk 0:00:35.6]} 34. Rg2 {[%clk 0:00:28]} 34... Rxg2
{[%clk 0:00:33.7]} 35. Kxg2 {[%clk 0:00:27.7]} 35... Ke5 {[%clk 0:00:34.6]} 36.
Kf3 {[%clk 0:00:27.5]} 36... f5 {[%clk 0:00:31.1]} 37. a4 {[%clk 0:00:24.8]}
37... Bd4 {[%clk 0:00:25.8]} 38. Re1+ {[%clk 0:00:21.8]} 38... Be3 {[%clk
0:00:25.3]} 39. Ke2 {[%clk 0:00:20]} 39... Kd4 {[%clk 0:00:22.1]} 40. a5 {[%clk
0:00:19.9]} 40... Ke5 {[%clk 0:00:19.9]} 41. axb6 {[%clk 0:00:19.6]} 41... axb6
{[%clk 0:00:20.8]} 42. Rb1 {[%clk 0:00:19.4]} 42... Kf6 {[%clk 0:00:19.8]} 43.
Rxb6+ {[%clk 0:00:19.3]} 43... Kg5 {[%clk 0:00:20.7]} 44. d6 {[%clk 0:00:18.3]}
44... Bd4 {[%clk 0:00:20.6]} 45. d7 {[%clk 0:00:16.1]} 45... Bf6 {[%clk
0:00:18.8]} 46. Rxf6 {[%clk 0:00:16.2]} 46... Kxf6 {[%clk 0:00:19.7]} 47. d8=Q+
{[%clk 0:00:16.5]} 47... Ke5 {[%clk 0:00:20.6]} 48. Qe7+ {[%clk 0:00:16.5]}
48... Kd4 {[%clk 0:00:20.3]} 49. Qf6# {[%clk 0:00:16.3]} 1-0

[Event "Betsys MČR v online bleskovém šachu 2021"]
[Site "Chess.com"]
[Date "2021.04.17"]
[Round "2"]
[White "Michaela1994"]
[Black "EDA16"]
[Result "1-0"]
[WhiteElo "1618"]
[BlackElo "957"]
[TimeControl "180+1"]
[EndTime "9:17:48 PDT"]
[Termination "Uživatel Michaela1994 zvítězil na čas"]

1. e4 {[%clk 0:03:00.9]} 1... e5 {[%clk 0:02:56.9]} 2. Nf3 {[%clk 0:02:59.8]}
2... Nc6 {[%clk 0:02:56]} 3. Bc4 {[%clk 0:03:00.1]} 3... h6 {[%clk 0:02:54.6]}
4. O-O {[%clk 0:02:58.8]} 4... Nf6 {[%clk 0:02:46.6]} 5. Re1 {[%clk 0:02:58.4]}
5... Bc5 {[%clk 0:02:44.1]} 6. c3 {[%clk 0:02:58]} 6... O-O {[%clk 0:02:42]} 7.
d4 {[%clk 0:02:57.5]} 7... exd4 {[%clk 0:02:39.3]} 8. cxd4 {[%clk 0:02:57.5]}
8... Bb4 {[%clk 0:02:37]} 9. Nc3 {[%clk 0:02:57]} 9... Bxc3 {[%clk 0:02:35.8]}
10. bxc3 {[%clk 0:02:56.4]} 10... d6 {[%clk 0:02:29.5]} 11. Nh4 {[%clk
0:02:50.7]} 11... Re8 {[%clk 0:02:19.1]} 12. Qc2 {[%clk 0:02:29.5]} 12... Be6
{[%clk 0:02:10.8]} 13. d5 {[%clk 0:02:26.7]} 13... Na5 {[%clk 0:02:00.2]} 14.
Bb5 {[%clk 0:02:13.6]} 14... Bd7 {[%clk 0:01:50.3]} 15. Bd3 {[%clk 0:02:10.1]}
15... c6 {[%clk 0:01:41.4]} 16. dxc6 {[%clk 0:02:09.3]} 16... Nxc6 {[%clk
0:01:39.2]} 17. Bb2 {[%clk 0:02:03.3]} 17... Rc8 {[%clk 0:01:37.9]} 18. Rac1
{[%clk 0:01:54.9]} 18... Qb6 {[%clk 0:01:36.5]} 19. Bc4 {[%clk 0:01:41.5]} 19...
Ne5 {[%clk 0:01:31.4]} 20. Bb3 {[%clk 0:01:36]} 20... Nc4 {[%clk 0:01:23.3]} 21.
Ba1 {[%clk 0:01:30.7]} 21... Be6 {[%clk 0:01:10.3]} 22. Qe2 {[%clk 0:01:11]}
22... d5 {[%clk 0:01:00]} 23. exd5 {[%clk 0:00:59.3]} 23... Bxd5 {[%clk
0:00:56.4]} 24. Qd3 {[%clk 0:00:59.7]} 24... Rxe1+ {[%clk 0:00:47]} 25. Rxe1
{[%clk 0:00:59.2]} 25... Qd6 {[%clk 0:00:35.9]} 26. Nf5 {[%clk 0:00:54.5]} 26...
Qd7 {[%clk 0:00:32.9]} 27. Ne7+ {[%clk 0:00:46.8]} 27... Kh8 {[%clk 0:00:31.3]}
28. Nxc8 {[%clk 0:00:45.2]} 28... Qxc8 {[%clk 0:00:31.1]} 29. Qd4 {[%clk
0:00:36.3]} 29... Qg4 {[%clk 0:00:25.8]} 30. Qxg4 {[%clk 0:00:34.2]} 30... Nxg4
{[%clk 0:00:20.7]} 31. Bxc4 {[%clk 0:00:33.3]} 31... Bxc4 {[%clk 0:00:19.6]} 32.
Re4 {[%clk 0:00:32.8]} 32... Be6 {[%clk 0:00:17.7]} 33. Rb4 {[%clk 0:00:28.4]}
33... Nf6 {[%clk 0:00:17.1]} 34. Rxb7 {[%clk 0:00:27.8]} 34... Kh7 {[%clk
0:00:16.8]} 35. c4 {[%clk 0:00:26.3]} 35... Bxc4 {[%clk 0:00:14.5]} 36. Bxf6
{[%clk 0:00:26.1]} 36... gxf6 {[%clk 0:00:12.5]} 37. Rxa7 {[%clk 0:00:26.2]}
37... Bd5 {[%clk 0:00:08.8]} 38. a4 {[%clk 0:00:25.5]} 38... Kg6 {[%clk
0:00:07.2]} 39. a5 {[%clk 0:00:25.5]} 39... f5 {[%clk 0:00:06.2]} 40. a6 {[%clk
0:00:24.2]} 40... f6 {[%clk 0:00:03.1]} 41. Rd7 {[%clk 0:00:22.6]} 41... Be4
{[%clk 0:00:01.9]} 42. a7 {[%clk 0:00:21.2]} 1-0

[Event "Betsys MČR v online bleskovém šachu 2021"]
[Site "Chess.com"]
[Date "2021.04.17"]
[Round "2"]
[White "JJ95"]
[Black "BRNOTEACHER"]
[Result "1/2-1/2"]
[WhiteElo "2007"]
[BlackElo "2362"]
[TimeControl "180+1"]
[EndTime "9:17:49 PDT"]
[Termination "Remíza opakováním pozice"]

1. e4 {[%clk 0:03:00.9]} 1... c6 {[%clk 0:02:59.8]} 2. c4 {[%clk 0:03:00.7]}
2... d5 {[%clk 0:03:00.7]} 3. exd5 {[%clk 0:03:01.6]} 3... cxd5 {[%clk 0:03:01]}
4. d4 {[%clk 0:03:01.6]} 4... Nf6 {[%clk 0:03:00.6]} 5. Nc3 {[%clk 0:03:01.9]}
5... Nc6 {[%clk 0:03:00.3]} 6. Nf3 {[%clk 0:03:01.6]} 6... Bg4 {[%clk
0:02:59.7]} 7. cxd5 {[%clk 0:03:01.8]} 7... Nxd5 {[%clk 0:02:59.4]} 8. Qb3
{[%clk 0:03:00.3]} 8... Bxf3 {[%clk 0:02:59.4]} 9. gxf3 {[%clk 0:02:58.3]} 9...
e6 {[%clk 0:02:59.6]} 10. Qxb7 {[%clk 0:02:55]} 10... Nxd4 {[%clk 0:02:58.9]}
11. Bb5+ {[%clk 0:02:48.6]} 11... Nxb5 {[%clk 0:02:58.7]} 12. Qxb5+ {[%clk
0:02:41.7]} 12... Qd7 {[%clk 0:02:56]} 13. Qxd7+ {[%clk 0:02:39]} 13... Kxd7
{[%clk 0:02:56.9]} 14. Nxd5 {[%clk 0:02:39.7]} 14... exd5 {[%clk 0:02:56.6]} 15.
Be3 {[%clk 0:02:38.8]} 15... Bb4+ {[%clk 0:02:48.9]} 16. Ke2 {[%clk 0:02:38.5]}
16... Rhc8 {[%clk 0:02:41.4]} 17. Rac1 {[%clk 0:02:31.4]} 17... a5 {[%clk
0:02:36.6]} 18. a3 {[%clk 0:02:27.2]} 18... Bd6 {[%clk 0:02:34.3]} 19. h3 {[%clk
0:02:22.7]} 19... Be5 {[%clk 0:02:25.4]} 20. b3 {[%clk 0:02:04.5]} 20... Bb2
{[%clk 0:02:01.5]} 21. Rc5 {[%clk 0:01:51.4]} 21... Ke6 {[%clk 0:01:33.3]} 22.
Rd1 {[%clk 0:01:29.8]} 22... Bxa3 {[%clk 0:01:08.8]} 23. Rcxd5 {[%clk
0:01:25.7]} 23... g6 {[%clk 0:01:02]} 24. Bb6 {[%clk 0:01:09.5]} 24... Rc3
{[%clk 0:00:53.1]} 25. Rxa5 {[%clk 0:00:49.8]} 25... Rxa5 {[%clk 0:00:51.3]} 26.
Bxa5 {[%clk 0:00:50.7]} 26... Rxb3 {[%clk 0:00:51.3]} 27. Kf1 {[%clk 0:00:34.2]}
27... Rxf3 {[%clk 0:00:49.3]} 28. Kg2 {[%clk 0:00:34]} 28... Rb3 {[%clk
0:00:48.5]} 29. Re1+ {[%clk 0:00:33.3]} 29... Kf6 {[%clk 0:00:44.1]} 30. Bd8+
{[%clk 0:00:31.8]} 30... Kf5 {[%clk 0:00:41.5]} 31. Bc7 {[%clk 0:00:29.4]} 31...
f6 {[%clk 0:00:35.8]} 32. Bg3 {[%clk 0:00:22.2]} 32... h5 {[%clk 0:00:29.4]} 33.
h4 {[%clk 0:00:22.1]} 33... Rb2 {[%clk 0:00:21.1]} 34. Re3 {[%clk 0:00:19.8]}
34... Bc5 {[%clk 0:00:20.1]} 35. Rf3+ {[%clk 0:00:19.9]} 35... Ke6 {[%clk
0:00:19.9]} 36. Rc3 {[%clk 0:00:17.6]} 36... Kd5 {[%clk 0:00:17.9]} 37. Rf3
{[%clk 0:00:15.7]} 37... Bd4 {[%clk 0:00:16.9]} 38. Ra3 {[%clk 0:00:11.2]} 38...
Rb6 {[%clk 0:00:15]} 39. Rf3 {[%clk 0:00:10.7]} 39... Ke4 {[%clk 0:00:12.7]} 40.
Rf4+ {[%clk 0:00:09.6]} 40... Kd5 {[%clk 0:00:12.4]} 41. Rf3 {[%clk 0:00:08.6]}
41... Kc4 {[%clk 0:00:11.8]} 42. Ra3 {[%clk 0:00:08.1]} 42... Kd5 {[%clk
0:00:11.1]} 43. Rf3 {[%clk 0:00:08.1]} 1/2-1/2